fUST/lending_fUST_20250527
["ID","MTS","AMOUNT","RATE_DAILY","PERIOD"]
[362532233,1748353846660,-899.6,0.00022465,2]
[362532235,1748353846669,-430.0,0.00022465,2]
[362532237,1748353846679,-430.0,0.00022465,2]
[362532239,1748353846688,-670.25,0.00022465,2]
[362532241,1748353846697,-430.0,0.00022465,2]
[362532243,1748353846707,-430.0,0.00022465,2]
[362532244,1748353846716,-430.0,0.00022465,2]
[362532246,1748353846726,-586.06,0.00022465,2]
[362532248,1748353846735,-430.0,0.00022465,2]
[362532250,1748353846745,-158.875448,0.000225,2]
[362532253,1748353846755,-160.0,0.000226,3]
[362532254,1748353846764,-179.247445,0.00022603,2]
[362532257,1748353846774,-1979.87,0.00022635,2]
[362532259,1748353846784,-590.22,0.00022739,2]
[362532261,1748353846793,-482.75,0.00022739,2]
[362532263,1748353846804,-1148.92,0.00022739,2]
[362532265,1748353846813,-430.0,0.00022739,2]
[362532267,1748353846823,-820.99,0.00022739,2]
[362532269,1748353846834,-873.7,0.00022739,2]
[362532271,1748353846844,-652.91,0.00022739,2]
[362532273,1748353846853,-907.08,0.00022739,2]
[362532275,1748353846862,-430.0,0.00022739,2]
[362532277,1748353846872,-899.6,0.00022739,2]
[362532279,1748353846882,-430.0,0.00022739,2]
[362532281,1748353846891,-430.0,0.00022739,2]
[362532283,1748353846901,-670.25,0.00022739,2]
[362532285,1748353846911,-430.0,0.00022739,2]
[362532287,1748353846921,-430.0,0.00022739,2]
[362532289,1748353846932,-430.0,0.00022739,2]
[362532291,1748353846942,-586.06,0.00022739,2]
[362532293,1748353846952,-430.0,0.00022739,2]
[362532295,1748353846962,-160.0,0.00022784,2]
[362532297,1748353846971,-590.22,0.00023013,2]
[362532299,1748353846981,-482.75,0.00023013,2]
[362532301,1748353846991,-1148.92,0.00023013,2]
[362532303,1748353847001,-430.0,0.00023013,2]
[362532305,1748353847011,-820.99,0.00023013,2]
[362532307,1748353847021,-873.7,0.00023013,2]
[362532309,1748353847031,-652.91,0.00023013,2]
[362532311,1748353847040,-907.08,0.00023013,2]
[362532313,1748353847050,-430.0,0.00023013,2]
[362532315,1748353847059,-899.6,0.00023013,2]
[362532317,1748353847069,-430.0,0.00023013,2]
[362532319,1748353847080,-430.0,0.00023013,2]
[362532321,1748353847089,-670.25,0.00023013,2]
[362532323,1748353847100,-430.0,0.00023013,2]
[362532325,1748353847110,-430.0,0.00023013,2]
[362532327,1748353847120,-430.0,0.00023013,2]
[362532329,1748353847131,-586.06,0.00023013,2]
[362532331,1748353847141,-430.0,0.00023013,2]
[362532333,1748353847150,-153.0,0.00023123,2]
[362532336,1748353847160,-153.0,0.00023123,2]
[362532338,1748353847170,-153.0,0.00023123,2]
[362532339,1748353847179,-961.0,0.00023276,2]
[362532341,1748353847188,-708.0,0.00023276,2]
[362532343,1748353847198,-2230.0,0.00023276,2]
[362532346,1748353847208,-150.528,0.00023276,2]
[362532347,1748353847218,-240.033,0.00023276,2]
[362532349,1748353847227,-195.973,0.00023276,2]
[362532352,1748353847237,-410.219,0.00023276,2]
[362532354,1748353847247,-590.22,0.00023287,2]
[362532356,1748353847256,-482.75,0.00023287,2]
[362532358,1748353847266,-1148.92,0.00023287,2]
[362532359,1748353847275,-357.55,0.00023287,2]
[362532361,1748353847285,-820.99,0.00023287,2]
[362532363,1748353847294,-873.7,0.00023287,2]
[362532365,1748353847303,-652.91,0.00023287,2]
[362532367,1748353847313,-907.08,0.00023287,2]
[362532369,1748353847323,-386.13,0.00023287,2]
[362532371,1748353847332,-899.6,0.00023287,2]
[362532373,1748353847344,-430.0,0.00023287,2]
[362532376,1748353847354,-430.0,0.00023287,2]
[362532378,1748353847363,-670.25,0.00023287,2]
[362532380,1748353847372,-430.0,0.00023287,2]
[362532382,1748353847381,-430.0,0.00023287,2]
[362532384,1748353847391,-430.0,0.00023287,2]
[362532386,1748353847401,-586.06,0.00023287,2]
[362532387,1748353847410,-292.1294035,0.00023287,2]
[362532389,1748353847422,-257823.09,0.000233,7]
[362532391,1748353847431,-2478.01,0.000233,7]
[362532394,1748353847442,-151.0,0.000233,7]
[362532395,1748353847452,-151.0,0.000233,7]
[362532398,1748353847462,-151.0,0.000233,7]
[362532399,1748353847475,-151.0,0.000233,7]
[362532401,1748353847485,-151.0,0.000233,7]
[362532403,1748353847497,-151.0,0.000233,7]
[362532406,1748353847507,-151.0,0.000233,7]
[362532407,1748353847519,-248.487979,0.000233,2]
[362532409,1748353847529,-248.487979,0.000233,2]
[362532411,1748353847539,-151.0,0.000233,7]
[362532414,1748353847549,-158.317566,0.000233,7]
[362532415,1748353847560,-17952.24,0.000233,2]
[362532417,1748353847570,-500.0,0.00023356,2]
[362532420,1748353847580,-151.0,0.00023356,7]
[362532422,1748353847590,-7049.09,0.000234,7]
[362532424,1748353847605,-16795.96416675,0.000234,2]
[362532426,1748353847614,-151.0,0.000234,7]
[362532428,1748353847624,-151.0,0.000234,7]
[362532429,1748353847633,-151.0,0.000234,2]
[362532431,1748353847643,-151.0,0.000234,2]
[362532434,1748353847654,-152.516252,0.000234,7]
[362532436,1748353847664,-259.762291,0.000234,7]
[362532438,1748353847673,-151.0,0.000234,7]
[362532439,1748353847683,-164887.32173,0.00023499,2]
[362532442,1748353847693,-114547.94,0.000235,2]
[362532443,1748353847702,-151.0,0.000235,7]
[362532445,1748353847712,-151.0,0.000235,7]
[362532448,1748353847722,-2375.85,0.0002354,2]
[362532450,1748353847732,-590.22,0.00023561,2]
[362532452,1748353847742,-482.75,0.00023561,2]
[362532453,1748353847751,-1148.92,0.00023561,2]
[362532456,1748353847762,-820.99,0.00023561,2]
[362532457,1748353847771,-873.7,0.00023561,2]
[362532460,1748353847780,-652.91,0.00023561,2]
[362532462,1748353847790,-907.08,0.00023561,2]
[362532464,1748353847800,-899.6,0.00023561,2]
[362532466,1748353847809,-430.0,0.00023561,2]
[362532468,1748353847819,-430.0,0.00023561,2]
[362532470,1748353847829,-670.25,0.00023561,2]
[362532472,1748353847838,-430.0,0.00023561,2]
[362532474,1748353847851,-430.0,0.00023561,2]
[362532476,1748353847860,-430.0,0.00023561,2]
[362532478,1748353847870,-586.06,0.00023561,2]
[362532480,1748353847879,-160.0,0.000236,3]
[362532482,1748353847889,-199.4422694,0.00023655,2]
[362532484,1748353847899,-160.0,0.000238,4]
[362532486,1748353847908,-590.22,0.00023835,2]
[362532488,1748353847918,-482.75,0.00023835,2]
[362532490,1748353847927,-1148.92,0.00023835,2]
[362532492,1748353847937,-820.99,0.00023835,2]
[362532494,1748353847947,-873.7,0.00023835,2]
[362532496,1748353847957,-652.91,0.00023835,2]
[362532498,1748353847966,-907.08,0.00023835,2]
[362532500,1748353847976,-899.6,0.00023835,2]
[362532502,1748353847986,-426.0,0.00023835,2]
[362532504,1748353847996,-430.0,0.00023835,2]
[362532506,1748353848006,-670.25,0.00023835,2]
[362532508,1748353848015,-430.0,0.00023835,2]
[362532510,1748353848027,-430.0,0.00023835,2]
[362532512,1748353848037,-224.92,0.00023835,2]
[362532514,1748353848047,-586.06,0.00023835,2]
[362532516,1748353848057,-153.0,0.00023945,2]
[362532518,1748353848067,-1443.47241473,0.00023972,2]
[362532520,1748353848077,-229.18805157,0.00024,7]
[362532522,1748353848087,-165.595,0.00024109,2]
[362532524,1748353848098,-590.22,0.00024109,2]
[362532526,1748353848109,-482.75,0.00024109,2]
[362532528,1748353848118,-1148.92,0.00024109,2]
[362532530,1748353848127,-820.99,0.00024109,2]
[362532532,1748353848137,-873.7,0.00024109,2]
[362532534,1748353848147,-652.91,0.00024109,2]
[362532536,1748353848157,-907.08,0.00024109,2]
[362532538,1748353848169,-899.6,0.00024109,2]
[362532540,1748353848179,-430.0,0.00024109,2]
[362532542,1748353848188,-670.25,0.00024109,2]
[362532544,1748353848197,-530.72,0.00024109,2]
[362532546,1748353848207,-286.53,0.00024109,2]
[362532548,1748353848217,-586.06,0.00024109,2]
[362532550,1748353848227,-160.0,0.00024153,2]
[362532566,1748353848371,-1443.47241473,0.00024229,2]
[362532568,1748353848382,-590.22,0.00024383,2]
[362532570,1748353848391,-482.75,0.00024383,2]
[362532572,1748353848401,-1148.92,0.00024383,2]
[362532574,1748353848410,-820.99,0.00024383,2]
[362532576,1748353848419,-873.7,0.00024383,2]
[362532578,1748353848429,-652.91,0.00024383,2]
[362532580,1748353848439,-907.08,0.00024383,2]
[362532582,1748353848449,-899.6,0.00024383,2]
[362532584,1748353848461,-450.0,0.00024383,2]
[362532586,1748353848470,-670.25,0.00024383,2]
[362532588,1748353848482,-586.06,0.00024383,2]
[362532590,1748353848491,-532.0,0.000244,15]
[362532592,1748353848501,-257823.09,0.000244,7]
[362532594,1748353848511,-2478.01,0.000244,7]
[362532596,1748353848521,-151.0,0.000244,7]
[362532598,1748353848530,-151.0,0.000244,7]
[362532600,1748353848539,-151.0,0.000244,7]
[362532602,1748353848550,-151.0,0.000244,7]
[362532604,1748353848561,-151.0,0.000244,7]
[362532606,1748353848570,-151.0,0.000244,7]
[362532608,1748353848580,-248.487979,0.000244,2]
[362532610,1748353848590,-248.487979,0.000244,2]
[362532612,1748353848601,-181.591225,0.000244,7]
[362532614,1748353848610,-151.0,0.000244,2]
[362532616,1748353848619,-17952.24,0.000244,2]
[362532618,1748353848629,-151.0,0.000244,7]
[362532620,1748353848638,-2771.82,0.00024446,2]
[362532622,1748353848648,-489.0,0.00024448,2]
[362532624,1748353848657,-773.5012,0.00024453,3]
[362532626,1748353848667,-1443.47241473,0.00024486,2]
[362532628,1748353848676,-158.875448,0.000245,30]
[362532630,1748353848686,-168.9469918,0.00024521,2]
[362532632,1748353848695,-153.0,0.00024521,2]
[362532634,1748353848705,-153.0,0.00024521,2]
[362532636,1748353848714,-153.0,0.00024521,2]
[362532638,1748353848723,-7049.09,0.000246,7]
[362532640,1748353848732,-151.0,0.000246,7]
[362532642,1748353848742,-151.0,0.000246,7]
[362532644,1748353848751,-153.0,0.00024603,2]
[362532646,1748353848760,-153.0,0.00024603,2]
[362532648,1748353848769,-153.0,0.00024603,2]
[362532650,1748353848779,-311.42090538,0.0002465,2]
[362532652,1748353848788,-12907.07546719,0.0002465,2]
[362532654,1748353848797,-293.220748,0.00024657,7]
[362532656,1748353848807,-151.0,0.00024657,7]
[362532658,1748353848816,-331.19,0.00024657,3]
[362532660,1748353848825,-590.22,0.00024657,2]
[362532662,1748353848835,-482.75,0.00024657,2]
[362532664,1748353848844,-1148.92,0.00024657,2]
[362532666,1748353848854,-820.99,0.00024657,2]
[362532668,1748353848864,-873.7,0.00024657,2]
[362532670,1748353848873,-652.91,0.00024657,2]
[362532672,1748353848882,-907.08,0.00024657,2]
[362532674,1748353848892,-899.6,0.00024657,2]
[362532676,1748353848901,-670.25,0.00024657,2]
[362532678,1748353848910,-586.06,0.00024657,2]
[362532680,1748353848920,-197.01713493,0.00024658,2]
[362532682,1748353848929,-212.18234242,0.00024658,2]
[362532684,1748353848939,-1443.47241473,0.00024743,2]
[362532686,1748353848948,-114547.94,0.000248,2]
[362532688,1748353848958,-187.0,0.000248,5]
[362532690,1748353848967,-187.0,0.000248,5]
[362532692,1748353848977,-187.0,0.000248,5]
[362532694,1748353848987,-187.0,0.000248,5]
[362532696,1748353848996,-478.29416396,0.000248,2]
[362532698,1748353849006,-153.0,0.00024822,2]
[362532700,1748353849016,-153.0,0.00024822,2]
[362532703,1748353849026,-315.2654308,0.00024822,2]
[362532705,1748353849036,-2000.0,0.000249,2]
[362532707,1748353849046,-151.0,0.000249,7]
[362532709,1748353849055,-151.0,0.000249,7]
[362532710,1748353849065,-151.0,0.000249,7]
[362532713,1748353849075,-151.0,0.000249,7]
[362532714,1748353849084,-151.0,0.000249,7]
[362532716,1748353849094,-151.0,0.000249,7]
[362532718,1748353849105,-248.487979,0.000249,2]
[362532720,1748353849116,-248.487979,0.000249,2]
[362532722,1748353849126,-151.0,0.000249,2]
[362532725,1748353849137,-191.19,0.000249,31]
[362532726,1748353849147,-191.19,0.000249,31]
[362532728,1748353849157,-191.19,0.000249,31]
[362532730,1748353849168,-191.19,0.000249,31]
[362532732,1748353849177,-191.19,0.000249,31]
[362532733,1748353849187,-191.19,0.000249,31]
[362532735,1748353849197,-191.19,0.000249,31]
[362532737,1748353849207,-191.19,0.000249,31]
[362532739,1748353849217,-191.19,0.000249,31]
[362532741,1748353849226,-191.19,0.000249,31]
[362532742,1748353849236,-191.19,0.000249,31]
[362532743,1748353849246,-191.19,0.000249,31]
[362532744,1748353849255,-191.19,0.000249,31]
[362532745,1748353849265,-191.19,0.000249,31]
[362532746,1748353849275,-191.19,0.000249,31]
[362532747,1748353849284,-191.19,0.000249,31]
[362532748,1748353849296,-660572.103827,0.000249,2]
[362532749,1748353849305,-151.0,0.000249,7]
[362532750,1748353849315,-590.22,0.00024931,2]
[362532751,1748353849324,-482.75,0.00024931,2]
[362532752,1748353849333,-1148.92,0.00024931,2]
[362532753,1748353849343,-820.99,0.00024931,2]
[362532754,1748353849354,-873.7,0.00024931,2]
[362532755,1748353849364,-652.91,0.00024931,2]
[362532756,1748353849373,-907.08,0.00024931,2]
[362532757,1748353849382,-899.6,0.00024931,2]
[362532758,1748353849392,-670.25,0.00024931,2]
[362532759,1748353849402,-586.06,0.00024931,2]
[362532760,1748353849411,-107757.14517709,0.00025,30]
[362532761,1748353849421,-51022.32743389,0.00025,30]
[362532762,1748353849430,-232020.31632323,0.00025,7]
[362532767,1748353849562,-1347.91526807,0.00019177,2]
[362532769,1748353849572,-500.0,0.00019178,2]
[362532771,1748353849581,-10851.23375862,0.00025,7]
[362532853,1748353850361,-500.0,0.00018867,2]
[362532855,1748353850373,-357.16852568,0.00018867,2]
[362532857,1748353850385,-492.69872961,0.00018867,2]
[362532887,1748353850671,-7.30127039,0.00018867,2]
[362532889,1748353850680,-225.91295469,0.00018867,2]
[362532891,1748353850690,-188.91452603,0.00018867,2]
[362532893,1748353850699,-381.60719281,0.00018867,2]
[362532895,1748353850709,-1347.91526807,0.00019177,2]
[362532897,1748353850719,-500.0,0.00019177,2]
[362532899,1748353850728,-1347.91526807,0.00019177,2]
[362532901,1748353850738,-500.0,0.00019177,2]
[362532903,1748353850748,-1347.91526807,0.00019177,2]
[362532905,1748353850757,-1347.91526807,0.00019177,2]
[362532907,1748353850767,-1347.91526807,0.00019177,2]
[362532909,1748353850776,-1347.91526807,0.00019177,2]
[362532911,1748353850786,-1347.91526807,0.00019177,2]
[362532913,1748353850795,-1347.91526807,0.00019177,2]
[362532915,1748353850805,-1347.91526807,0.00019177,2]
[362532917,1748353850814,-605.16274966,0.00019178,2]
[362532919,1748353850824,-430.0,0.00019178,2]
[362532921,1748353850834,-500.0,0.00019178,2]
[362532923,1748353850843,-500.0,0.00019178,2]
[362532925,1748353850853,-500.0,0.00019178,2]
[362532927,1748353850863,-430.0,0.00019452,2]
[362532929,1748353850872,-395.97,0.00019984,2]
[362532931,1748353850882,-1884.09085191,0.000209,4]
[362532933,1748353850891,-791.95,0.00020936,2]
[362532935,1748353850901,-1884.09085172,0.00021038,4]
[362532937,1748353850911,-1884.09085172,0.00021176,4]
[362532939,1748353850920,-1884.09085172,0.00021314,5]
[362532941,1748353850929,-1884.09085172,0.00021452,5]
[362532943,1748353850939,-437.30969259,0.00021479,2]
[362532945,1748353850950,-1884.09085172,0.0002159,5]
[362532947,1748353850960,-1884.09085172,0.00021728,5]
[362532949,1748353850969,-18504.35729088,0.00025,7]
[362532955,1748353851010,-1884.09085172,0.00021866,6]
[362532956,1748353851019,-1884.09085172,0.00022003,6]
[362532959,1748353851029,-1884.09085172,0.00022141,6]
[362532961,1748353851039,-1884.09085172,0.00022279,6]
[362532963,1748353851050,-437.30969259,0.00022334,2]
[362532965,1748353851059,-1884.09085172,0.00022417,7]
[362532966,1748353851069,-1884.09085172,0.00022555,7]
[362532969,1748353851080,-2524.09262727,0.00025,7]
[362532971,1748353851090,-357.46863639,0.00025,2]
[362532973,1748353851100,-18500.61127463,0.00025,30]
[362532975,1748353851117,-23007.42635074,0.00025,30]
[362533021,1748353851574,-1884.09085172,0.00022693,7]
[362533023,1748353851584,-1884.09085172,0.00022831,8]
[362533025,1748353851594,-1884.09085172,0.00022969,8]
[362533027,1748353851605,-1884.09085172,0.00023107,8]
[362533029,1748353851614,-1884.09085172,0.00023245,8]
[362533031,1748353851623,-1884.09085172,0.00023383,9]
[362533033,1748353851633,-1884.09085172,0.00023521,9]
[362533035,1748353851642,-1884.09085172,0.00023659,9]
[362533037,1748353851652,-1884.09085172,0.00023797,9]
[362533039,1748353851662,-26375.84288867,0.00025,30]
[362533041,1748353851676,-20998.61972077,0.00025,30]
[362533043,1748353851687,-325.485287,0.00025,30]
[362533429,1748353877802,442.995146,0.00013699,2]
[362533888,1748354825122,-336.08794817,0.00016275,2]
[362534182,1748354853080,-2643.76101628,0.00016275,2]
[362534198,1748354951154,-221.47482921,0.00016275,2]
[362534203,1748354958134,-1798.67620634,0.00016275,2]
[362534205,1748354958157,-158.31664122,0.00016339,2]
[362534207,1748354958179,-187.84882538,0.00016439,2]
[362534209,1748354958207,-300.0,0.00017155,2]
[362534211,1748354958229,-605.49166871,0.00017156,2]
[362534213,1748354958252,-500.0,0.00017156,2]
[362534214,1748354958276,-500.0,0.00017156,2]
[362534215,1748354958302,-627.83094068,0.00017156,2]
[362534216,1748354958324,-500.0,0.00017156,2]
[362534217,1748354958347,-500.0,0.00017156,2]
[362534218,1748354958369,-500.0,0.00017156,2]
[362534219,1748354958393,-500.0,0.00017156,2]
[362534220,1748354958416,-500.0,0.00017156,2]
[362534221,1748354958438,-515.34264993,0.00017156,2]
[362534222,1748354958460,-500.0,0.00017156,2]
[362534223,1748354958483,-500.0,0.00017156,2]
[362534224,1748354958506,-500.0,0.00017156,2]
[362534225,1748354958528,-500.0,0.00017156,2]
[362534226,1748354958554,-500.0,0.00017156,2]
[362534227,1748354958578,-500.0,0.00017156,2]
[362534228,1748354958600,-96.01218338,0.00017156,2]
[362534229,1748354960786,5000.0,0.0001611,2]
[362534284,1748355035632,5000.0,0.0001611,2]
[362534313,1748355037895,-637.053397,0.00016316,2]
[362534314,1748355037908,-183.01937879,0.00017056,2]
[362534317,1748355037919,-300.0,0.00017155,2]
[362534318,1748355037929,-300.0,0.00017155,2]
[362534319,1748355037941,-300.0,0.00017155,2]
[362534320,1748355037952,-300.0,0.00017155,2]
[362534321,1748355037963,-800.75606072,0.00017155,2]
[362534322,1748355037977,-399.24393928,0.00017155,2]
[362534323,1748355037987,-357.67549001,0.00017155,2]
[362534324,1748355037998,-500.0,0.00017155,2]
[362534325,1748355038008,-500.0,0.00017155,2]
[362534326,1748355038018,-392.33304491,0.00017155,2]
[362534427,1748355039260,-212.34495524,0.00017155,2]
[362534429,1748355039270,-500.0,0.00017155,2]
[362534431,1748355039280,-500.0,0.00017155,2]
[362534433,1748355039289,-500.0,0.00017155,2]
[362534435,1748355039299,-500.0,0.00017155,2]
[362534437,1748355039308,-500.0,0.00017155,2]
[362534439,1748355039318,-500.0,0.00017155,2]
[362534441,1748355039328,-500.0,0.00017155,2]
[362534443,1748355039337,-500.0,0.00017155,2]
[362534445,1748355039347,-214.62975164,0.00017155,2]
[362534455,1748355039408,-285.37024836,0.00017155,2]
[362534458,1748355039418,-500.0,0.00017155,2]
[362534460,1748355039427,-500.0,0.00017155,2]
[362534462,1748355039437,-500.0,0.00017155,2]
[362534464,1748355039446,-500.0,0.00017155,2]
[362534466,1748355039456,-500.0,0.00017155,2]
[362534468,1748355039465,-500.0,0.00017155,2]
[362534470,1748355039474,-500.0,0.00017155,2]
[362534472,1748355039483,-500.0,0.00017155,2]
[362534474,1748355039492,-512.48636159,0.00017155,2]
[362534476,1748355039501,-500.0,0.00017155,2]
[362534479,1748355039510,-500.0,0.00017155,2]
[362534482,1748355039520,-500.0,0.00017155,2]
[362534483,1748355039529,-500.0,0.00017155,2]
[362534487,1748355039539,-500.0,0.00017155,2]
[362534489,1748355039548,-187.99964711,0.00017155,2]
[362534491,1748355039557,-500.0,0.00017155,2]
[362534493,1748355039567,-500.0,0.00017155,2]
[362534495,1748355039576,-500.0,0.00017155,2]
[362534498,1748355039585,-500.0,0.00017155,2]
[362534500,1748355039594,-387.21941031,0.00017155,2]
[362534502,1748355039606,-112.78058969,0.00017155,2]
[362534504,1748355039615,-500.0,0.00017155,2]
[362534506,1748355039625,-205.13941281,0.00017155,2]
[362534508,1748355039637,-294.86058719,0.00017155,2]
[362534510,1748355039648,-255.75346544,0.00017155,2]
[362534512,1748355039658,-500.0,0.00017155,2]
[362534514,1748355039667,-500.0,0.00017155,2]
[362534516,1748355039677,-500.0,0.00017155,2]
[362534518,1748355039688,-500.0,0.00017155,2]
[362534520,1748355039701,-500.0,0.00017155,2]
[362534522,1748355039710,-500.0,0.00017155,2]
[362534524,1748355039721,-249.4441681,0.00017155,2]
[362534572,1748355040172,-300.0,0.00017154,2]
[362534574,1748355040182,-250.5558319,0.00017155,2]
[362534576,1748355040192,-500.0,0.00017155,2]
[362534578,1748355040203,-505.53374117,0.00017155,2]
[362534580,1748355040212,-500.0,0.00017155,2]
[362534582,1748355040222,-500.0,0.00017155,2]
[362534584,1748355040233,-500.0,0.00017155,2]
[362534586,1748355040242,-500.0,0.00017155,2]
[362534588,1748355040252,-392.866566,0.00017155,2]
[362534590,1748355040262,-500.0,0.00017155,2]
[362534592,1748355040272,-500.0,0.00017155,2]
[362534594,1748355040282,-500.0,0.00017155,2]
[362534597,1748355040292,-500.0,0.00017155,2]
[362534599,1748355040301,-500.0,0.00017155,2]
[362534601,1748355040311,-500.0,0.00017155,2]
[362534602,1748355040320,-500.0,0.00017155,2]
[362534604,1748355040329,-500.0,0.00017155,2]
[362534606,1748355040339,-500.0,0.00017155,2]
[362534609,1748355040348,-500.0,0.00017155,2]
[362534611,1748355040360,-1174.61194982,0.00017155,2]
[362534613,1748355040369,-646.16538233,0.00017155,2]
[362534615,1748355040379,-1174.61194982,0.00017155,2]
[362534617,1748355040388,-1174.61194982,0.00017155,2]
[362534619,1748355040397,-500.0,0.00017155,2]
[362534621,1748355040407,-500.0,0.00017155,2]
[362534623,1748355040416,-1174.61194982,0.00017155,2]
[362534625,1748355040426,-1174.61194982,0.00017155,2]
[362534627,1748355040435,-1104.98020943,0.00017155,2]
[362534871,1748355043249,-69.63174039,0.00017155,2]
[362534873,1748355043259,-500.0,0.00017155,2]
[362534875,1748355043268,-1174.61194982,0.00017155,2]
[362534877,1748355043279,-1174.61194982,0.00017155,2]
[362534879,1748355043290,-338.79913143,0.00017155,2]
[362534881,1748355043299,-1174.61194982,0.00017155,2]
[362534883,1748355043309,-500.0,0.00017155,2]
[362534885,1748355043319,-198.1967083,0.00017155,2]
[362534888,1748355043337,-976.41524152,0.00017155,2]
[362534890,1748355043349,-1174.61194982,0.00017155,2]
[362534892,1748355043363,-500.0,0.00017155,2]
[362534894,1748355043374,-500.0,0.00017155,2]
[362534896,1748355043385,-500.0,0.00017155,2]
[362534898,1748355043396,-500.0,0.00017155,2]
[362534900,1748355043407,-1174.61194982,0.00017155,2]
[362534902,1748355043418,-1174.61194982,0.00017155,2]
[362534904,1748355043430,-1174.61194982,0.00017155,2]
[362534906,1748355043441,-1174.61194982,0.00017155,2]
[362534908,1748355043452,-151.0,0.00017156,2]
[362534910,1748355043463,-151.0,0.00017156,2]
[362534912,1748355043474,-515.52758517,0.00017156,2]
[362534914,1748355043486,-40375.61554346,0.00017156,2]
[362535163,1748355046000,-1781.94080849,0.00017156,2]
[362535168,1748355046040,-7842.44364805,0.00017156,2]
[362535170,1748355046050,-434.35922825,0.00017157,2]
[362535182,1748355046158,-462.14600001,0.00017157,2]
[362535184,1748355046170,-24003.49477174,0.00017157,2]
[362535186,1748355046179,-151.0,0.00017183,2]
[362535188,1748355046189,-213.2334,0.00017211,2]
[362535190,1748355046199,-160.0,0.00017291,2]
[362535192,1748355046209,-189.29207613,0.00017521,2]
[362535194,1748355046218,-4767.7930915,0.00017694,2]
[362535196,1748355046228,-2647.7776181,0.00018084,2]
[362535198,1748355046237,-183.01937877,0.00018177,2]
[362535200,1748355046247,-420.0,0.00018734,2]
[362535202,1748355046256,-420.0,0.00018734,2]
[362535204,1748355046265,-313.0,0.00018734,2]
[362535206,1748355046275,-157.76321245,0.000188,2]
[362535208,1748355046285,-1200.0,0.00018827,2]
[362535210,1748355046295,-3817.4049387,0.00018865,2]
[362535212,1748355046305,-159.43138798,0.000189,2]
[362535214,1748355046314,-430.0,0.00019178,2]
[362535216,1748355046323,-168.29192913,0.00019178,2]
[362535218,1748355046333,-430.0,0.00019178,2]
[362535220,1748355046342,-430.0,0.00019178,2]
[362535222,1748355046353,-430.0,0.00019178,2]
[362535224,1748355046362,-389.66,0.00019178,2]
[362535226,1748355046371,-430.0,0.00019178,2]
[362535228,1748355046381,-290.03566025,0.00019178,2]
[362535230,1748355046390,-413.57330831,0.00019178,2]
[362535232,1748355046400,-450.0,0.00019178,2]
[362535234,1748355046410,-316.58126201,0.00019178,2]
[362535237,1748355046419,-255.91969351,0.00019178,2]
[362535239,1748355046429,-430.0,0.00019178,2]
[362535241,1748355046438,-361.0699374,0.00019178,2]
[362535243,1748355046448,-430.0,0.00019178,2]
[362535245,1748355046458,-430.0,0.00019178,2]
[362535247,1748355046467,-430.0,0.00019178,2]
[362535249,1748355046477,-430.0,0.00019178,2]
[362535251,1748355046486,-430.0,0.00019178,2]